Cogmind - Beta 14 @@@ ROGUE MODE // 2025.01.10 @ 18:22:53 Player: Anting Result: Destroyed by G-34 Mercenary with Small Laser Performance ------------- Evolutions (1) 500 Regions Visited (2) 400 Robots Destroyed (48) 240 Value Destroyed (998) 998 Prototype IDs (0) 0 Alien Tech Used (0) 0 Bonus (0) 0 TOTAL SCORE: 2138 Bonus ------- None Cogmind --------- Core Integrity 0/400 Matter 300/300 Energy 100/100 System Corruption 0% Temperature Cool (6) Movement Core (700) Ox13 Location -9/Materials Parts ------- > --- POWER (1) -------- (None) > --- PROPULSION (2) --- (None) > --- UTILITY (4) ------ High-capacity Storage Unit Signal Interpreter > --- WEAPON (2) ------- Hammer > --- INVENTORY (20) --- Light Ion Engine Light Treads Flight Unit Flight Unit Flight Unit VTOL Module Visual Processing Unit Seismic Detector ECM Suite Light Armor Plating Mining Claw Peak State ------------ > --- POWER ------------ Ion Engine > --- PROPULSION ------- Light Treads Light Treads > --- UTILITY ---------- High-capacity Storage Unit Sensor Array Signal Interpreter Medium Armor Plating > --- WEAPON ----------- Assault Rifle Mini Grenade Launcher > --- INVENTORY -------- Light Ion Engine Light Treads Light Treads Flight Unit Flight Unit Flight Unit VTOL Module Visual Processing Unit Seismic Detector ECM Suite Light Armor Plating Assault Rifle Assault Rifle Hammer Mining Claw [Rating: 12] Favorites ----------- Power Ion Engine Engine Ion Engine Propulsion Light Treads Treads Light Treads Utility High-capacity Storage Unit Device Seismic Detector Storage High-capacity Storage Unit Processor Signal Interpreter Protection Light Armor Plating Weapon Assault Rifle Energy Cannon Beam Cannon Ballistic Gun Assault Rifle Launcher Mini Grenade Launcher Impact Weapon Hammer Slashing Weapon Mining Claw Build | -11 -10 -9 ------- Run | Yrd Mat Mat Slots Evolved 2 | . . 2 Power . | . . . Propulsion . | . . . Utility 2 | . . 2 Weapon . | . . . Parts Attached 36 | 7 11 18 Power 2 | 1 1 . Engine 2 | 1 1 . Core . | . . . Reactor . | . . . Propulsion 8 | 2 2 4 Treads 8 | 2 2 4 Leg . | . . . Wheel . | . . . Hover . | . . . Flight . | . . . Utility 11 | 2 3 6 Device 4 | 1 2 1 Storage 2 | 1 1 . Processor 1 | . . 1 Hackware . | . . . Protection 4 | . . 4 Artifact . | . . . Weapon 15 | 2 5 8 Energy Gun . | . . . Energy Cannon 1 | . 1 . Ballistic Gun 8 | 2 2 4 Ballistic Cannon . | . . . Launcher 2 | . . 2 Special Weapon . | . . . Impact Weapon 1 | . . 1 Slashing Weapon 3 | . 2 1 Piercing Weapon . | . . . Special Melee Weapon . | . . . Unidentified Prototypes . | . . . Parts Lost 17 | . 1 16 Power 2 | . 1 1 Propulsion 6 | . . 6 Utility 4 | . . 4 Weapon 5 | . . 5 Highest Loss Streak 11 | . 1 11 To Critical Strikes . | . . . Average Slot Usage (%) 97 | . 99 95 Engine 12 | . 13 10 Treads 24 | . 27 20 Device 12 | . 14 11 Storage 12 | . 14 11 Processor 5 | . . 11 Protection 4 | . . 10 Energy Cannon 6 | . 10 1 Ballistic Gun 16 | . 15 17 Slashing Weapon 1 | . 2 . Peak Build Rating 12 | 7 8 12 Average Rating 8 | 5 7 10 On Entrance 5 | . 7 8 Naked Turns . | . . . Heaviest Build 57 | 14 51 57 Greatest Support 40 | 40 40 40 Greatest Overweight (x) 15 | . 2 15 Average Overweight (x) . | . . 1 Largest Inventory Capacity 20 | 8 20 20 Average Capacity 16 | 7 14 20 Most Carried 17 | 5 13 17 Average Carried 10 | 1 8 13 Final Capacity 20 | 8 20 20 Final Carried 13 | 1 13 11 Class Distribution -------------------- 100% | Mutant Dominant Class ---------------- Mutant | -10/Materials Mutant | -9/Materials Resources | -11 -10 -9 ----------- Run | Yrd Mat Mat Matter Collected 1003 | 263 292 448 Remotely . | . . . Salvage Created 1597 | 94 631 872 Parts 95 | 4 37 54 Haulers Intercepted 1 | . . 1 Recyclers Shooed 3 | . 3 . Parts Field Recycled . | . . . Retrieved Matter . | . . . Parts Self-Destructed . | . . . Prevented . | . . . Kills | -11 -10 -9 ------- Run | Yrd Mat Mat Combat Hostiles Destroyed 37 | . 17 20 Guns 22 | . 6 16 Cannons 12 | . 11 1 AOE 1 | . . 1 Classes Destroyed 9 | 2 4 3 Worker 2 | . 2 . Tunneler 1 | 1 . . Hauler 1 | . . 1 Recycler 5 | 1 2 2 Watcher 2 | . 1 1 Swarmer 17 | . 9 8 Grunt 16 | . 8 8 Brawler 1 | . . 1 Sentry 3 | . . 3 Best Kill Streak 4 | 1 4 4 Combat Bots Only 3 | . 3 3 Max Kills in Single Turn 2 | 1 1 2 Gunslinging 1 | . . 1 Exploded 1 | . . 1 Melee . | . . . Uniques/NPCs Destroyed . | . . . Combat | -11 -10 -9 -------- Run | Yrd Mat Mat Hostile Shots Fired 325 | . 92 233 Missed 65 | . 18 47 Damage Taken 2680 | . 665 2015 Core 505 | . 98 407 Absorbed by Shields . | . . . Regen/Repaired (Parts) 167 | . 167 . Core Remaining (%) 80 | 100 60 . Volleys Fired 117 | 7 51 59 Largest 2 | 2 2 2 Hottest 80 | 40 80 80 Shots Fired 217 | 14 99 104 Gun 159 | 14 49 96 Cannon 55 | . 50 5 Launcher 3 | . . 3 Special . | . . . Kinetic 159 | 14 49 96 Thermal 55 | . 50 5 Explosive 3 | . . 3 Electromagnetic . | . . . Robot Hit Streak 10 | 6 10 10 Robot Miss Streak 3 | 1 3 3 Penetration Max . | . . . Secondary Targets 1 | . . 1 Max Gunslinging Chain 1 | . . 1 Shots Hit Robots 136 | 10 60 66 Core Hits 69 | 4 29 36 Critical Kills 1 | . . 1 Critical Parts Destroyed 3 | . . 3 Critical Strikes 4 | . . 4 Meltdown 1 | . . 1 Destroy 2 | . . 2 Smash 1 | . . 1 Melee Attacks 32 | . 22 10 Impact 3 | . . 3 Slashing 29 | . 22 7 Piercing . | . . . Sneak Attacks . | . . . Combat Hostiles . | . . . Follow-up Attacks . | . . . Damage Inflicted 2392 | 100 981 1311 Guns 1223 | 100 315 808 Cannons 738 | . 666 72 Explosions 349 | . . 349 Melee 82 | . . 82 Ramming . | . . . Kinetic 1223 | 100 315 808 Thermal 738 | . 666 72 Explosive 349 | . . 349 Electromagnetic . | . . . Impact 82 | . . 82 Slashing . | . . . Piercing . | . . . Highest Corruption . | . . . Average Corruption . | . . . Corruption Purged . | . . . Corruption Blocked . | . . . Overload Shots . | . . . Overflow Damage 41 | . 6 35 Projectiles 6 | . 6 . Explosions . | . . . Melee 35 | . . 35 Knockbacks . | . . . Impact . | . . . Kinetic . | . . . Secondary . | . . . Self-Inflicted Damage 41 | . . 41 Shots 1 | . . 1 Rammed . | . . . Targets Rammed . | . . . Kicked . | . . . Crushed . | . . . Highest Temperature 196 | . 196 72 Average Temperature 43 | . 46 29 Received Heat Transfer 1020 | . 174 846 Siege Activations . | . . . Robots Corrupted 1 | . . 1 Combat Hostiles 1 | . . 1 Parts Fried . | . . . Impact Corruptions 1 | . . 1 Robots Melted 1 | . . 1 Combat Hostiles 1 | . . 1 Parts Melted 5 | . 3 2 Heat Transferred 1554 | . 1406 148 Parts Sabotaged . | . . . Parts Stolen . | . . . Parts Stripped . | . . . Power Chain Reactions . | . . . Alert | -11 -10 -9 ------- Run | Yrd Mat Mat Peak Influence 382 | 10 382 348 Initial 152 | . 6 152 Average 186 | 3 171 225 Maximum Alert Level 1 | . 1 1 Low Security (%) 51 | 100 50 47 Level 1 48 | . 49 52 Level 2 . | . . . Level 3 . | . . . Level 4 . | . . . Level 5 . | . . . High Security . | . . . Max Security . | . . . Squads Dispatched 8 | . 4 4 Investigation 6 | . 3 3 Extermination . | . . . Reinforcement 2 | . 1 1 Assault . | . . . Garrison . | . . . Intercept . | . . . Searches Triggered . | . . . Construction Impeded . | . . . Haulers Reinforced . | . . . Active Scanning Responses . | . . . Cargo Convoy Interrupts . | . . . Stealth | -11 -10 -9 --------- Run | Yrd Mat Mat Distress Signals 6 | . 4 2 Communications Jammed . | . . . Distress Signals . | . . . Times Spotted 71 | . 28 43 Peak Tracking Total 10 | . 6 10 Tactical Retreats 11 | . 3 8 Traps | -11 -10 -9 ------- Run | Yrd Mat Mat Traps Triggered . | . . . Indirectly . | . . . Trap Hack Attempts . | . . . Triggered . | . . . Disarmed . | . . . Reprogrammed . | . . . Reused . | . . . Traps Extracted . | . . . Installed . | . . . Triggered . | . . . Machines | -11 -10 -9 ---------- Run | Yrd Mat Mat Machines Disabled 4 | . 2 2 Max in Single Turn 2 | . 1 2 Machines Repaired . | . . . Machines Dismantled . | . . . Machines Sabotaged . | . . . Overloaded Fab Kills . | . . . Hacking | -11 -10 -9 --------- Run | Yrd Mat Mat Machines Accessed 10 | . 6 4 Terminals 7 | . 4 3 Fabricators . | . . . Repair Stations 2 | . 1 1 Recycling Units 1 | . 1 . Scanalyzers . | . . . Garrison Access . | . . . Total Hacks 31 | . 18 13 Successful 14 | . 9 5 Failed 17 | . 9 8 Catastrophic 2 | . 2 . Database Lockouts . | . . . Manual 13 | . 8 5 Terminals 16 | . 9 7 Fabricators . | . . . Repair Stations 12 | . 6 6 Recycling Units 3 | . 3 . Scanalyzers . | . . . Garrison Access . | . . . Terminal Hacks 2 | . . 2 Record 2 | . . 2 Fabricator Hacks . | . . . Repair Station Hacks 6 | . 4 2 Scan Component 4 | . 2 2 Repair 2 | . 2 . Recycling Unit Hacks 2 | . 2 . Report Inventory 2 | . 2 . Scanalyzer . | . . . Garrison Access Hacks . | . . . Unauthorized Hacks 4 | . 3 1 Terminals 3 | . 2 1 Botnet 1 | . 1 . Operators 2 | . 1 1 Fabricators . | . . . Repair Stations . | . . . Recycling Units 1 | . 1 . Monitor 1 | . 1 . Scanalyzers . | . . . Garrison Access . | . . . Data Cores Recovered . | . . . Used . | . . . Hacking Detections 10 | . 6 4 Full Trace Events 6 | . 3 3 Feedback Events . | . . . Feedback Blocked . | . . . Robot Schematics Acquired . | . . . Robots Built . | . . . Authchips . | . . . Time . | . . . Total Robot Build Rating . | . . . Part Schematics Acquired . | . . . Parts Built . | . . . Authchips . | . . . Time . | . . . Total Part Build Rating . | . . . Parts Repaired 2 | . 2 . Time 52 | . 52 . Parts Recycled . | . . . Recycled Matter . | . . . Retrieved Matter . | . . . Retrieved Components . | . . . Parts Scanalyzed . | . . . Part Schematics Acquired . | . . . Parts Damaged . | . . . Bothacking | -11 -10 -9 ------------ Run | Yrd Mat Mat Used RIF Installer . | . . . Robots Hacked . | . . . Non-combat . | . . . Combat . | . . . Robot Hacks Applied . | . . . Relay Couplers Released . | . . . Fabnet Peak Effective % . | . . . Robots Rewired . | . . . Allies Hacked . | . . . Hacks Repelled . | . . . Allies | -11 -10 -9 -------- Run | Yrd Mat Mat Total Allies . | . . . Largest Group . | . . . Highest-Rated Group . | . . . Highest-Rated Ally . | . . . Total Orders . | . . . Ally Attacks . | . . . Total Damage . | . . . Kills . | . . . Allies Corrupted . | . . . Allies Melted . | . . . Intel | -11 -10 -9 ------- Run | Yrd Mat Mat Robot Analysis Total . | . . . Derelict Logs Recovered . | . . . Drone Launches . | . . . Drone Recoveries . | . . . Exploration | -11 -10 -9 ------------- Run | Yrd Mat Mat Turns Passed 3046 | 163 1519 1364 Spaces Moved 1156 | 89 618 449 Core 19 | 11 . 8 Treads 1137 | 78 618 441 Legs . | . . . Wheels . | . . . Hover . | . . . Flight . | . . . Fastest Speed 50 | 50 160 240 Average Speed 214 | 146 196 252 Slowest Speed 800 | 160 320 800 Overloaded Moves . | . . . Propulsion Burnouts . | . . . Robots Hopped . | . . . Cave-ins Triggered . | . . . Exploration Rate (%) 42 | 4 80 43 Regions Visited 2 Branch Regions . Pre-discovered Areas . | . . . Known Exits Taken . | . . . Unknown Exits Taken 2 | 1 1 . Scrap Searched . | . . . Spaces Dug 18 | . 13 5 Terrain Destroyed 49 | . 13 36 Melee 18 | . 13 5 Projectile . | . . . AOE 31 | . . 31 Terrain Rammed . | . . . Walls Destroyed . | . . . Machines Disabled . | . . . Actions | -11 -10 -9 --------- Run | Yrd Mat Mat Total 1444 | 109 780 555 Wait 64 | . 60 4 Move 1154 | 88 617 449 Hop . | . . . Pick Up 36 | 7 17 12 Fast Attach 1 | 1 . . Attach 24 | 6 4 14 Detach 1 | . . 1 Swap 11 | . 7 4 Drop 4 | . 2 2 Fire 117 | 7 51 59 Melee 32 | . 22 10 Ram . | . . . Kick . | . . . Crush . | . . . Escape Stasis . | . . . Rewire . | . . . Trap . | . . . Miscellaneous . | . . . Route ------- -11/Scrapyard -10/Materials (discovered 4 exits: *Mat x3 / [*Min]) -9/Materials (discovered 2 exits: [*Mat] / [*Min]) History --------- Turn | Location | Event 5 | -11/Scrapyard | Discovered new exit (range 15) 164 | -11/Scrapyard | Entered Materials 316 | -10/Materials | Build established: Mutant 989 | -10/Materials | Discovered new exit (range 10) 1136 | -10/Materials | Repaired Lgt. Treads 1164 | -10/Materials | Repaired Lgt. Treads 1386 | -10/Materials | Discovered new exit (range 16) 1605 | -10/Materials | Discovered new exit (range 5) 1646 | -10/Materials | Discovered new exit (range 3) 1683 | -10/Materials | Entered another Materials area 1683 | -9/Materials | Evolved 2 slots: Utility x2 2469 | -9/Materials | Discovered new exit (range 16) 2684 | -9/Materials | Discovered new exit (range 10) 2972 | -9/Materials | Core integrity fell below 50% 3002 | -9/Materials | Core integrity fell below 20% 3028 | -9/Materials | Lost 11 parts (1p4n2u4w) 3047 | -9/Materials | Destroyed by G-34 Mercenary with Small Laser Last Messages --------------- R-06 Scavenger destroyed. Scanalyzer disabled. Hadron Collector disabled. Mni. Grenade Launcher destroyed. Critical hit (Burn: +37). G-34 Mercenary destroyed. The unstable cave ceiling collapses. Acquired 29 matter. Lgt. Treads destroyed. Assault Rifle destroyed. Lgt. Armor Plating destroyed. G-34 Mercenary suffers critical hit (Smash). Destroyed Aluminum Leg. G-34 Mercenary system corrupted by crushing effect. G-34 Mercenary system terminally corrupted. [Achievement: Power Corrupts] Acquired 15 matter. K-01 Serf collects debris. Sensor Array destroyed. Map ----- +----------------------------------------------------+ | ???????# !# #??# !! / ?? | | ???????#####+#####% #### # ?? | | ??????????# = + # """ #####???? | | ??????????# ########## # """ #???????? | | ??????????# #????????# # """ #???????? | | #######???# #????????###+###### #???????? | | #???# #???????##?# #????# #???????? | | """ #???# #???????" ## #????# ####?#???????? | | """ #???# #??"""""" ## #????? #????????????? | | """ #???# # """"""" ## #????? "????????????? | | [ #???# # """"""" ## #????? ????????????? | | "% #???# # """"""" ## #????? ????????????? | | = #???# +?? ## #????? < ????????????? | | " #???# #???? ## #????? ????????????? | | #???# #?????? ## #????? ?????????????? | | ###+####### #####+###+## #?????????????????????? | | ! %#????? #????????????? | | < #####%#????? ??????????? | | #???# #????? ????????? | | ###+## ##+##########????# #????# !??????? | | # ## #?????# #???## !!!????? | | # ## ! #?????# #???# !!!????? | | "" # ## #?????# #???# ????? | | """ # ## #?????# #???# ?????? | | """ # ## = !####### #???# " ?????? | | """ # ## = + @ #???# ""?????? | | "" # ## =#######g#???# "??????? | | # ## #?????# #???# ""??????? | | ###### ############?????# #???# "" ?????? | | ?????# #????????????????# #???# """?????? | | ?????# ##################%##### " """?????? | | ?????# % T """ ?? | | ?????# ################## ##### " " #? | | ?????# #????????????????# #???# #? | | ?????# #????????????????# ##### *%! #? | | ?????# #???????????????##[ ## ######??? | | ?????# #????????????#### # ## ######??? | | ?????# #????????????# == [=* ?? | | ????? #????????????# =* %* ?? | | ????? ?????????????# "" % % ?? | | ????? ?????????????# "" [ "= #############?? | | ????? ?????????????# """ # #?????????????? | | ????? ?????????????# """ # #?????????????? | | ???? ?????????????# ! # #?????????????? | | ???? ?????????????# # ????????????? | | ????? ?????????????########### ???????????? | | ???????????????????????????????# ??????????? | | ???????????????????????????????# ?????????? | | ???????????????????????????????? ????????? | | ???????????????????????????????? """" ???????? | +----------------------------------------------------+ Best States ------------- Heat Dissipation 28 Energy Generation 10 Energy Capacity 250 Matter Stores 300 Matter Capacity 300 Sight Range 16 Robot Scan Range 14 Terrain Scan Density 10 Armor Coverage 225 Evasion (%) 50 Recoil Reduction 2 Item Schematics ----------------- None Robot Schematics ------------------ None Fabricated ------------ Nothing Alien Tech Used ----------------- None Achievements -------------- Let's See Who's Tougher Loot Pinata Part-time Excavator Power Corrupts Challenges ------------ None Game ------ Seed CannonBiocellPlatform Manual? 0 Play Time 00:20:19 Cumulative 1.1 hours Start 2025.01.10 @ 18:03:04 End 2025.01.10 @ 18:22:53 Sessions 1 Manual Loads 0 Difficulty Rogue Special Mode None Game No. 2 Rogue 2 Adventurer 0 Explorer 0 Win Type - Total 0 Types 0/0/0/0/0/0/0/0/0 Lore% 3 Gallery% 3 Achievement% 7 Wizard Run 0 Options --------- Layout 1 ASCII 0 Keyboard 0 Movement Mouse Keybinds 0 Fullscreen 2 Font 32/SmallcapsGlow Map View 50x35 Zoom Use 0% Tactical HUD 0 Map Filters NONE Filters NONE Steam 1 RUN: 407d14bc-a6a1-49f3-a1f7-e86f6b76201e